bitfinex/quotes_BTCUSD_20240918
["timestamp","ask_amount","ask_price","bid_price","bid_amount"]
[1726658196211,0.11125246,59974.0,59973.0,0.001742]
[1726658196498,0.10925246,59974.0,59973.0,0.001742]
[1726658196905,0.11025246,59974.0,59973.0,0.001742]
[1726658200119,0.10925246,59974.0,59973.0,0.001742]
[1726658201145,0.10925246,59974.0,59973.0,0.002742]
[1726658203754,0.10925246,59974.0,59973.0,0.001742]
[1726658204294,0.10925246,59974.0,59973.0,0.002742]
[1726658204508,0.10925246,59974.0,59973.0,0.001742]
[1726658204722,0.10925246,59974.0,59973.0,0.002742]
[1726658204943,0.01645246,59974.0,59973.0,0.002742]
[1726658205156,0.01645246,59974.0,59973.0,0.001742]
[1726658205374,0.01645246,59974.0,59973.0,0.003742]
[1726658206909,0.01645246,59974.0,59973.0,0.00707655]
[1726658207134,0.01645246,59974.0,59973.0,0.001742]
[1726658207362,0.01645246,59974.0,59973.0,0.004742]
[1726658207852,0.000821,59976.0,59973.0,0.001742]
[1726658208080,0.000821,59976.0,59975.0,0.10118534]
[1726658211213,0.01084542,59976.0,59975.0,0.10118534]
[1726658211899,0.01084542,59976.0,59975.0,0.10518534]
[1726658213400,0.01708945,59976.0,59975.0,0.10518534]
[1726658215963,0.01436393,59976.0,59975.0,0.19948534]
[1726658216215,0.000821,59976.0,59975.0,0.19948534]
[1726658216466,0.000821,59976.0,59975.0,0.20281948]
[1726658216743,0.000821,59976.0,59975.0,0.30234071]
[1726658217007,0.000821,59979.0,59978.0,0.23318534]
[1726658217262,0.000821,59979.0,59978.0,0.4958183]
[1726658217544,0.000821,59979.0,59978.0,0.49915183]
[1726658218292,0.000821,59979.0,59978.0,0.39957254]
[1726658219051,0.4676,59994.0,59993.0,0.10118534]
[1726658219289,0.000821,59996.0,59993.0,0.10118534]
[1726658219540,0.01007799,59994.0,59993.0,0.10118534]
[1726658219786,0.000821,59996.0,59993.0,0.10118534]
[1726658220033,0.01007799,59994.0,59993.0,0.10118534]
[1726658220264,0.000821,59996.0,59993.0,0.10118534]
[1726658220265,0.01006852,59995.0,59993.0,0.10118534]
[1726658220522,0.0100741,59994.0,59993.0,0.10118534]
[1726658221021,0.000821,59996.0,59993.0,0.10118534]
[1726658221552,0.01006852,59995.0,59993.0,0.10118534]
[1726658222060,0.01006852,59995.0,59994.0,0.0001]
[1726658222317,0.01006852,59995.0,59990.0,0.0001]
[1726658222597,0.16305367,59994.0,59989.0,0.0001]
[1726658222832,0.16305367,59994.0,59988.0,0.0001]
[1726658223139,0.16305367,59994.0,59986.0,0.0001]
[1726658223140,0.01008416,59993.0,59986.0,0.0001]
[1726658223813,0.18920275,59992.0,59986.0,0.0001]
[1726658224055,0.01009644,59991.0,59986.0,0.0001]
[1726658224286,0.17315011,59991.0,59986.0,0.10118534]
[1726658226717,0.17615011,59991.0,59986.0,0.10118534]
[1726658227687,0.17315011,59991.0,59986.0,0.10118534]
[1726658227924,0.17315011,59991.0,59986.0,0.10218534]
[1726658227925,0.17897111,59991.0,59986.0,0.10218534]
[1726658228396,0.0037513,59990.0,59986.0,0.10118534]
[1726658228632,0.01005169,59989.0,59986.0,0.10118534]
[1726658229560,0.16605367,59991.0,59986.0,0.10118534]
[1726658229798,0.02614938,59990.0,59986.0,0.10118534]
[1726658230057,0.16605367,59991.0,59989.0,0.10108534]
[1726658230272,0.16305367,59991.0,59989.0,0.10108534]
[1726658230498,0.16905367,59991.0,59989.0,0.10108534]
[1726658230906,0.16305367,59991.0,59989.0,0.10108534]
[1726658231124,0.002,59990.0,59989.0,0.10108534]
[1726658231606,0.01006844,59990.0,59989.0,0.10108534]
[1726658232496,0.01006844,59990.0,59986.0,0.10118534]
[1726658234376,0.01206844,59990.0,59989.0,0.10108534]
[1726658234639,0.01006844,59990.0,59989.0,0.10118534]
[1726658234869,0.090921,59996.0,59989.0,0.10118534]
[1726658235089,0.002,59990.0,59989.0,0.10118534]
[1726658235316,0.01377834,59995.0,59989.0,0.10118534]
[1726658235754,0.002,59990.0,59989.0,0.10118534]
[1726658236202,0.002,59990.0,59989.0,0.0001]
[1726658237111,0.0958,59990.0,59989.0,0.0001]
[1726658237340,0.0938,59990.0,59989.0,0.0001]
[1726658237776,0.0938,59990.0,59989.0,0.001]
[1726658238004,0.0938,59990.0,59987.0,0.0001]
[1726658238493,0.0938,59990.0,59989.0,0.0001]
[1726658238494,0.0958,59990.0,59989.0,0.0001]
[1726658238736,0.0938,59990.0,59989.0,0.0001]
[1726658238956,0.0988,59990.0,59989.0,0.0001]
[1726658239372,0.0938,59990.0,59989.0,0.0001]
[1726658239871,0.0938,59990.0,59987.0,0.0001]
[1726658240119,0.0938,59990.0,59986.0,0.0001]
[1726658240371,0.0938,59990.0,59987.0,0.10108534]
[1726658240864,0.0958,59990.0,59987.0,0.10108534]
[1726658241354,0.0938,59990.0,59987.0,0.10108534]
[1726658241576,0.0968,59990.0,59987.0,0.10108534]
[1726658241797,0.0968,59990.0,59989.0,0.0001]
[1726658242023,0.0938,59990.0,59989.0,0.0001]
[1726658242270,0.0958,59990.0,59989.0,0.0001]
[1726658242486,0.0938,59990.0,59989.0,0.0001]
[1726658243409,0.09751549,59990.0,59989.0,0.0001]
[1726658244544,0.10051549,59990.0,59989.0,0.0001]
[1726658245006,0.09751549,59990.0,59989.0,0.0001]
[1726658245444,0.09751549,59990.0,59989.0,0.001742]
[1726658245881,0.09951549,59990.0,59989.0,0.001742]
[1726658254753,0.09751549,59990.0,59989.0,0.001742]
[1726658256899,0.00371549,59990.0,59989.0,0.001742]
[1726658258338,0.00371549,59990.0,59989.0,0.003742]
[1726658268296,0.00371549,59990.0,59989.0,0.001742]
[1726658269938,0.000821,59991.0,59990.0,0.0001]
[1726658270179,0.000821,59991.0,59990.0,0.10118534]
[1726658270388,0.01459243,59991.0,59990.0,0.10118534]
[1726658270615,0.000821,59991.0,59990.0,0.10118534]
[1726658271066,0.01459244,59991.0,59990.0,0.10118534]
[1726658271291,0.01459244,59991.0,59990.0,0.0001]
[1726658271292,0.10869244,59991.0,59990.0,0.0001]
[1726658278403,0.10869244,59991.0,59990.0,0.0011]
[1726658281979,0.10869244,59991.0,59990.0,0.0001]
[1726658282876,0.11069244,59991.0,59990.0,0.0001]
[1726658283370,0.11069244,59991.0,59990.0,0.10118534]
[1726658284061,0.01659244,59991.0,59990.0,0.10118534]
[1726658284290,0.01659244,59991.0,59990.0,0.10451898]
[1726658284522,0.01659244,59991.0,59990.0,0.10118534]
[1726658284804,0.01459244,59991.0,59990.0,0.10118534]
[1726658286066,0.00454745,59991.0,59990.0,0.15106267]
[1726658286297,0.00454745,59991.0,59990.0,0.17600134]
[1726658286298,0.000821,59991.0,59990.0,0.17600134]
[1726658286529,0.000821,59991.0,59990.0,0.10218534]
[1726658287009,0.000821,59991.0,59990.0,0.15203441]
[1726658287240,0.000821,59991.0,59990.0,0.10218534]
[1726658287935,0.000821,59991.0,59990.0,0.10551869]
[1726658288161,0.000821,59991.0,59990.0,0.10218534]
[1726658288647,0.000821,59991.0,59990.0,0.36537236]
[1726658288872,0.000821,59991.0,59990.0,0.46512703]
[1726658289350,0.000821,59991.0,59990.0,0.36537236]
[1726658289592,0.000821,59991.0,59990.0,0.48454741]
[1726658289822,0.000821,59991.0,59990.0,0.25795367]
[1726658290059,0.001821,59991.0,59990.0,0.46865166]
[1726658291447,0.001821,59991.0,59990.0,0.36903901]
[1726658292629,0.001821,59991.0,59990.0,0.44370501]
[1726658293085,0.001821,59991.0,59990.0,0.44534701]
[1726658294540,0.001821,59991.0,59990.0,0.37068101]
[1726658296664,0.001821,59991.0,59990.0,0.42043601]
[1726658297311,0.001821,59991.0,59990.0,0.37068101]
[1726658300121,0.001821,59991.0,59990.0,0.42043601]
[1726658300589,0.001821,59991.0,59990.0,0.52043601]
[1726658300822,0.001821,59991.0,59990.0,0.47068101]
[1726658301314,0.001821,59991.0,59990.0,0.54534701]
[1726658301588,0.001821,59991.0,59990.0,0.47068101]
[1726658301818,0.001821,59991.0,59990.0,0.54534701]
[1726658302263,0.001821,59991.0,59990.0,0.54734701]
[1726658303203,0.001821,59991.0,59990.0,0.57726778]
[1726658303439,0.001821,59991.0,59990.0,0.5771996]
[1726658303663,0.001821,59991.0,59990.0,0.51274296]
[1726658305292,0.001821,59991.0,59990.0,0.57519045]
[1726658307186,0.001821,59991.0,59990.0,0.57719045]
[1726658307409,0.001821,59991.0,59990.0,0.57519045]
[1726658308990,0.001821,59991.0,59990.0,0.45045882]
[1726658309215,0.001821,59991.0,59990.0,0.48037959]
[1726658310311,0.001821,59991.0,59990.0,0.50522755]
[1726658310798,0.001821,59991.0,59990.0,0.40580178]
[1726658311019,0.001821,59991.0,59990.0,0.48036571]
[1726658312199,0.001821,59991.0,59990.0,0.50059525]
[1726658312657,0.001821,59991.0,59990.0,0.500585]
[1726658315757,0.001821,59991.0,59990.0,0.42602107]
[1726658316455,0.001821,59991.0,59990.0,0.42599746]
[1726658316691,0.001821,59991.0,59990.0,0.42799746]
[1726658317390,0.001821,59991.0,59990.0,0.52742323]
[1726658320283,0.001821,59991.0,59990.0,0.42799746]
[1726658322115,0.001821,59991.0,59990.0,0.55229381]
[1726658322339,0.000821,59996.0,59995.0,0.20108534]
[1726658322566,0.000821,59996.0,59995.0,0.41718341]
[1726658323433,0.000821,59996.0,59995.0,0.41728341]
[1726658323614,0.000821,59996.0,59995.0,0.42228341]
[1726658324260,0.000821,59996.0,59995.0,0.44713915]
[1726658325027,0.000821,59996.0,59995.0,0.37257195]
[1726658325724,0.000821,59996.0,59995.0,0.37457195]
[1726658326205,0.000821,59996.0,59995.0,0.37257195]
[1726658327808,0.000821,59996.0,59995.0,0.4968683]
[1726658328287,0.000821,59996.0,59995.0,0.49689982]
[1726658329214,0.000821,59996.0,59995.0,0.49889982]
[1726658330828,0.000821,59996.0,59995.0,0.37457195]
[1726658333300,0.000821,59996.0,59995.0,0.61368617]
[1726658333793,0.000821,59996.0,59995.0,0.46449272]
[1726658334038,0.000821,59996.0,59995.0,0.6137788]
[1726658334526,0.000821,59996.0,59995.0,0.60877146]
[1726658335010,0.000821,59996.0,59995.0,0.61377146]
[1726658336471,0.000821,59996.0,59995.0,0.57677146]
[1726658336714,0.000821,59996.0,59995.0,0.43815978]
[1726658337178,0.000821,59996.0,59995.0,0.40815978]
[1726658343968,0.000821,59996.0,59995.0,0.37823901]
[1726658344209,0.000821,59996.0,59995.0,0.40815978]
[1726658349575,0.000821,59998.0,59997.0,0.03202077]
[1726658349784,0.000821,59998.0,59997.0,0.328407]
[1726658350008,0.0916555,60008.0,60001.0,0.0021]
[1726658350264,0.0916555,60008.0,60001.0,0.26648607]
[1726658351467,0.0916555,60008.0,60001.0,0.26315367]
[1726658351686,0.0012555,60008.0,60001.0,0.27315367]
[1726658351917,0.093221,60002.0,60001.0,0.27315367]
[1726658353507,0.000821,60002.0,60001.0,0.30307444]
[1726658353739,0.000821,60002.0,60001.0,0.30640684]
[1726658355316,0.000821,60002.0,60001.0,0.27315367]
[1726658355540,0.095221,60002.0,60001.0,0.37423901]
[1726658357132,0.095221,60002.0,60001.0,0.40415978]
[1726658357595,0.000821,60002.0,60001.0,0.40415978]
[1726658360928,0.000821,60002.0,60001.0,0.43615978]
[1726658361575,0.000821,60002.0,60001.0,0.46615978]
[1726658363367,0.0012555,60008.0,60007.0,0.0001]
[1726658363586,0.0012555,60008.0,60007.0,0.4918832]
[1726658363805,0.0012555,60008.0,60007.0,0.36757123]
[1726658365027,0.0012555,60008.0,60007.0,0.36957123]
[1726658365258,0.0971,60015.0,60014.0,0.0001]
[1726658365497,0.11125409,60015.0,60014.0,0.41394906]
[1726658365723,0.0971,60015.0,60014.0,0.41394906]
[1726658366185,0.0261359,60017.0,60015.0,0.1]
[1726658366410,0.0261359,60017.0,60014.0,0.26423901]
[1726658366411,0.0261359,60017.0,60016.0,0.26305367]
[1726658366855,0.0947,60020.0,60016.0,0.26305367]
[1726658367072,0.0947,60020.0,60019.0,0.10108534]
[1726658367312,0.0947,60020.0,60019.0,0.26413901]
[1726658369183,0.0947,60020.0,60019.0,0.27413901]
[1726658372287,0.095521,60020.0,60019.0,0.27413901]
[1726658372552,0.10967508,60020.0,60019.0,0.27413901]
[1726658379262,0.10967508,60020.0,60019.0,0.26413901]
[1726658379488,0.095521,60020.0,60019.0,0.27413901]
[1726658379708,0.095521,60020.0,60019.0,0.27423901]
[1726658379946,0.095521,60020.0,60019.0,0.26423901]
[1726658380196,0.095521,60020.0,60019.0,0.27723901]
[1726658381031,0.000821,60020.0,60019.0,0.27723901]
[1726658381456,0.01503115,60020.0,60019.0,0.27723901]
[1726658381675,0.000821,60020.0,60019.0,0.27723901]
[1726658381927,0.01503115,60020.0,60019.0,0.45169996]
[1726658382182,0.000821,60020.0,60019.0,0.37723901]
[1726658382428,0.000821,60020.0,60019.0,0.47649494]
[1726658382660,0.0039763,60026.0,60025.0,0.0001]
[1726658382896,0.01818645,60026.0,60025.0,0.2675704]
[1726658383124,0.0039763,60026.0,60025.0,0.2675704]
[1726658383347,0.00392789,60026.0,60025.0,0.3695704]
[1726658383558,0.0996,60031.0,60026.0,0.1]
[1726658383826,0.0996,60031.0,60030.0,0.10108534]
[1726658384090,0.0996,60031.0,60030.0,0.26747018]
[1726658384786,0.0996,60031.0,60030.0,0.26757018]
[1726658385014,0.083,60039.0,60038.0,0.10118534]
[1726658385471,0.0877206,60039.0,60038.0,0.10118534]
[1726658385710,0.09584503,60039.0,60038.0,0.10118534]
[1726658385952,0.01284503,60039.0,60038.0,0.26423901]
[1726658386184,0.0793,60051.0,60038.0,0.26423901]
[1726658386403,0.0793,60051.0,60043.0,0.10118534]
[1726658387267,0.0793,60051.0,60043.0,0.26423901]
[1726658387970,0.0969,60048.0,60043.0,0.26423901]
[1726658388196,0.01688809,60044.0,60043.0,0.26423901]
[1726658388926,0.0039763,60044.0,60043.0,0.26423901]
[1726658390497,0.0039763,60044.0,60043.0,0.36423901]
[1726658390715,0.0039763,60044.0,60043.0,0.39765901]
[1726658393879,0.0039763,60044.0,60043.0,0.41165901]
[1726658399405,0.0039763,60044.0,60043.0,0.27715367]
[1726658399590,0.0039763,60044.0,60043.0,0.37823901]
[1726658400254,0.0047973,60044.0,60043.0,0.37823901]
[1726658400707,0.0047973,60044.0,60043.0,0.1141]
[1726658400926,0.0047973,60044.0,60043.0,0.21518534]
[1726658401147,0.01802049,60044.0,60043.0,0.21518534]
[1726658401359,0.0047973,60044.0,60043.0,0.21518534]
[1726658402055,0.0047973,60044.0,60043.0,0.37823901]
[1726658402925,0.0047973,60044.0,60043.0,0.26315367]
[1726658403160,0.0960973,60044.0,60043.0,0.0001]
[1726658403439,0.0960973,60044.0,60043.0,0.21118534]
[1726658403661,0.10932049,60044.0,60043.0,0.20118534]
[1726658403878,0.0960973,60044.0,60043.0,0.20118534]
[1726658404115,0.10932049,60044.0,60043.0,0.2676949]
[1726658404329,0.10932049,60044.0,60043.0,0.1141]
[1726658404775,0.10932049,60044.0,60043.0,0.1001]
[1726658406349,0.10932049,60044.0,60043.0,0.1111]
[1726658407091,0.01802049,60044.0,60043.0,0.1001]
[1726658408268,0.01802049,60044.0,60043.0,0.1091]
[1726658408269,0.01580608,60044.0,60043.0,0.1091]
[1726658409620,0.11200608,60044.0,60043.0,0.1091]
[1726658409849,0.11200608,60044.0,60043.0,0.1001]
[1726658410296,0.11200608,60044.0,60043.0,0.1121]
[1726658410530,0.11200608,60044.0,60043.0,0.1001]
[1726658410944,0.11200608,60044.0,60043.0,0.1091]
[1726658411154,0.11200608,60044.0,60043.0,0.1001]
[1726658411569,0.11200608,60044.0,60043.0,0.1121]
[1726658411994,0.11200608,60044.0,60043.0,0.0121]
[1726658413037,0.11200608,60044.0,60043.0,0.0001]
[1726658413468,0.11200608,60044.0,60043.0,0.0091]
[1726658414093,0.11200608,60044.0,60043.0,0.0001]
[1726658414481,0.11200608,60044.0,60043.0,0.0091]
[1726658414952,0.01580608,60044.0,60043.0,0.27215367]
[1726658415373,0.0047973,60044.0,60043.0,0.30757367]
[1726658415578,0.0047973,60044.0,60043.0,0.30557367]
[1726658415747,0.0047973,60044.0,60043.0,0.31536732]
[1726658416155,0.0047973,60044.0,60043.0,0.30636732]
[1726658416599,0.0047973,60044.0,60043.0,0.35061838]
[1726658416805,0.0047973,60044.0,60043.0,0.34728809]
[1726658417015,0.0047973,60044.0,60043.0,0.33628809]
[1726658417229,0.0047973,60044.0,60043.0,0.34828809]
[1726658417848,0.0047973,60044.0,60043.0,0.35028809]
[1726658422234,0.0047973,60044.0,60043.0,0.53238809]
[1726658422448,0.02612286,60054.0,60053.0,0.38271567]
[1726658422662,0.0023947,60059.0,60058.0,0.0001]
[1726658422871,0.0023947,60059.0,60058.0,0.41674857]
[1726658423914,0.0023947,60059.0,60058.0,0.42274857]
[1726658424406,0.0023947,60059.0,60058.0,0.41674857]
[1726658424629,0.0023947,60059.0,60058.0,0.42474857]
[1726658426982,0.0023947,60059.0,60058.0,0.2616949]
[1726658427449,0.0136479,60059.0,60058.0,0.2616949]
[1726658427697,0.0023947,60059.0,60058.0,0.2616949]
[1726658427925,0.0136479,60059.0,60058.0,0.2616949]
[1726658428150,0.0023947,60059.0,60058.0,0.2616949]
[1726658429402,0.0023947,60059.0,60058.0,0.0081]
[1726658429697,0.01364789,60059.0,60058.0,0.0081]
[1726658429937,0.0023947,60059.0,60058.0,0.0081]
[1726658430176,0.01364789,60059.0,60058.0,0.0081]
[1726658430420,0.0023947,60059.0,60058.0,0.0081]
[1726658430624,0.01364789,60059.0,60058.0,0.0081]
[1726658431494,0.01364789,60059.0,60058.0,0.1616949]
[1726658433494,0.01364789,60059.0,60058.0,0.0081]
[1726658433706,0.01364789,60059.0,60058.0,0.1616949]
[1726658435265,0.01364789,60059.0,60058.0,0.32474857]
[1726658435728,0.0023947,60059.0,60058.0,0.32474857]
[1726658437091,0.0032157,60059.0,60058.0,0.32474857]
[1726658440444,0.0032157,60059.0,60058.0,0.42674857]
[1726658440709,0.0032157,60059.0,60058.0,0.73681582]
[1726658440929,0.0032157,60059.0,60058.0,0.76162724]
[1726658441155,0.0032157,60059.0,60058.0,0.66247981]
[1726658441422,0.0032157,60059.0,60058.0,0.761575]
[1726658442106,0.0032157,60059.0,60058.0,0.759575]
[1726658442347,0.0032157,60059.0,60058.0,0.49905934]
[1726658442572,0.0032157,60059.0,60058.0,0.47428558]
[1726658443446,0.0032157,60059.0,60058.0,0.42474857]
[1726658445255,0.0032157,60059.0,60058.0,0.41674857]
[1726658445477,0.0032157,60059.0,60058.0,0.42374857]
[1726658445693,0.0032157,60059.0,60058.0,0.41674857]
[1726658446124,0.0032157,60059.0,60058.0,0.42374857]
[1726658446407,0.0032157,60059.0,60058.0,0.41674857]
[1726658446883,0.0032157,60059.0,60058.0,0.42374857]
[1726658447333,0.0032157,60059.0,60058.0,0.47529172]
[1726658447549,0.0032157,60059.0,60058.0,0.57399172]
[1726658447780,0.0032157,60059.0,60058.0,0.5987633]
[1726658447968,0.0032157,60059.0,60058.0,0.52444857]
[1726658448241,0.0032157,60059.0,60058.0,0.51544857]
[1726658448469,0.0032157,60059.0,60058.0,0.56698199]
[1726658448708,0.0032157,60059.0,60058.0,0.60640199]
[1726658448999,0.0032157,60059.0,60058.0,0.60040199]
[1726658449198,0.0032157,60059.0,60058.0,0.60640199]
[1726658449430,0.0032157,60059.0,60058.0,0.50569806]
[1726658449706,0.0032157,60059.0,60058.0,0.45016857]
[1726658449961,0.0032157,60059.0,60058.0,0.50569806]
[1726658450594,0.0032157,60059.0,60058.0,0.45816857]
[1726658451061,0.02933538,60059.0,60058.0,0.45816857]
[1726658451494,0.0032157,60059.0,60058.0,0.75793277]
[1726658451712,0.0032157,60059.0,60058.0,0.52646281]
[1726658451925,0.0032157,60059.0,60058.0,0.76984485]
[1726658452141,0.0032157,60059.0,60058.0,0.8246096]
[1726658452353,0.000821,60063.0,60061.0,0.0021]
[1726658452567,0.000821,60063.0,60061.0,0.59890659]
[1726658453049,0.000821,60063.0,60061.0,0.5805585]
[1726658453473,0.000821,60063.0,60061.0,0.60531573]
[1726658454131,0.000821,60063.0,60061.0,0.6051189]
[1726658454349,0.000821,60063.0,60061.0,0.63503967]
[1726658454551,0.000821,60063.0,60061.0,0.53599665]
[1726658455201,0.000821,60063.0,60061.0,0.63503889]
[1726658455415,0.000821,60063.0,60061.0,0.60495519]
[1726658455619,0.000821,60063.0,60061.0,0.61395519]
[1726658455836,0.000821,60063.0,60061.0,0.62374956]
[1726658456260,0.000821,60063.0,60061.0,0.59382879]
[1726658456490,0.000821,60063.0,60061.0,0.51053594]
[1726658456737,0.000821,60063.0,60061.0,0.54945671]
[1726658456968,0.000821,60063.0,60061.0,0.62375761]
[1726658457176,0.000821,60063.0,60061.0,0.61475761]
[1726658457406,0.000821,60063.0,60061.0,0.64817761]
[1726658458283,0.03009328,60062.0,60061.0,0.65017761]
[1726658458494,0.03009328,60062.0,60061.0,0.57587671]
[1726658459124,0.03009328,60062.0,60061.0,0.57609727]
[1726658459385,0.03009328,60062.0,60061.0,0.58509727]
[1726658459597,0.03009328,60062.0,60061.0,0.6751976]
[1726658459810,0.0039763,60062.0,60061.0,0.6881976]
[1726658460450,0.0039763,60062.0,60061.0,0.58909727]
[1726658460703,0.0039763,60062.0,60061.0,0.58709727]
[1726658460963,0.0039763,60062.0,60061.0,0.67523892]
[1726658461193,0.0039763,60062.0,60061.0,0.68823892]
[1726658461632,0.0039763,60062.0,60061.0,0.5591765]
[1726658461855,0.0039763,60062.0,60061.0,0.58709727]
[1726658462080,0.0039763,60062.0,60061.0,0.68625431]
[1726658462296,0.0039763,60062.0,60061.0,0.68825431]
[1726658462516,0.0039763,60062.0,60061.0,0.65633354]
[1726658462517,0.0047973,60062.0,60061.0,0.65633354]
[1726658462744,0.0047973,60062.0,60061.0,0.62199525]
[1726658462973,0.0047973,60062.0,60061.0,0.38394739]
[1726658463198,0.0047973,60062.0,60061.0,0.34616355]
[1726658463424,0.0047973,60062.0,60061.0,0.36016355]
[1726658463665,0.0047973,60062.0,60061.0,0.36016513]
[1726658463888,0.0047973,60062.0,60061.0,0.60834315]
[1726658464346,0.0047973,60062.0,60061.0,0.64612647]
[1726658464678,0.0047973,60062.0,60061.0,0.63312647]
[1726658464900,0.0047973,60062.0,60061.0,0.64612647]
[1726658465580,0.0047973,60062.0,60061.0,0.67084484]
[1726658466143,0.0047973,60062.0,60061.0,0.54696943]
[1726658466390,0.0047973,60062.0,60061.0,0.7008686]
[1726658466629,0.0047973,60062.0,60061.0,0.5788902]
[1726658467107,0.0047973,60062.0,60061.0,0.5658902]
[1726658467901,0.0047973,60062.0,60061.0,0.5786114]
[1726658468131,0.0047973,60062.0,60061.0,0.5656114]
[1726658468469,0.0309139,60062.0,60061.0,0.6256114]
[1726658468625,0.4676,60079.0,60071.0,0.0001]
[1726658468861,0.1020763,60080.0,60071.0,0.51589499]
[1726658469096,0.1020763,60080.0,60071.0,0.72822965]
[1726658469573,0.1020763,60080.0,60071.0,0.49111269]
[1726658469574,0.0039763,60080.0,60071.0,0.49111269]
[1726658469841,0.0039763,60080.0,60071.0,0.75234966]
[1726658470329,0.0039763,60080.0,60071.0,0.49110001]
[1726658470837,0.0039763,60080.0,60071.0,0.46631198]
[1726658471332,0.0039763,60080.0,60071.0,0.41674857]
[1726658471576,0.0039763,60080.0,60071.0,0.46630585]
[1726658471806,0.0039763,60080.0,60071.0,0.41674857]
[1726658472054,0.0039763,60080.0,60071.0,0.49110001]
[1726658472567,0.0039763,60080.0,60071.0,0.41674857]
[1726658472569,0.0039763,60080.0,60071.0,0.42574857]
[1726658472811,0.0039763,60080.0,60071.0,0.50007045]
[1726658473054,0.0039763,60080.0,60071.0,0.72724997]
[1726658473299,0.0039763,60080.0,60071.0,0.73724997]
[1726658473547,0.0039763,60080.0,60071.0,0.69834809]
[1726658473791,0.0039763,60080.0,60071.0,0.69634809]
[1726658474471,0.0039763,60080.0,60071.0,0.80911229]
[1726658474882,0.0039763,60080.0,60071.0,0.7530613]
[1726658475166,0.0039763,60080.0,60071.0,0.69834809]
[1726658475394,0.0039763,60080.0,60071.0,0.71834809]
[1726658475878,0.0039763,60080.0,60071.0,0.82112872]
[1726658476358,0.0039763,60080.0,60071.0,0.81212872]
[1726658476579,0.0039763,60080.0,60071.0,0.82412872]
[1726658476809,0.000921,60072.0,60071.0,0.82412872]
[1726658477514,0.000921,60072.0,60071.0,0.83406315]
[1726658477704,0.000921,60072.0,60071.0,0.86406315]
[1726658480568,0.000921,60072.0,60071.0,0.86606315]
[1726658480797,0.000921,60072.0,60071.0,0.74028252]
[1726658481039,0.000921,60072.0,60071.0,0.74228252]
[1726658482228,0.000921,60072.0,60071.0,0.74485174]
[1726658482438,0.000921,60072.0,60071.0,0.74285174]
[1726658482882,0.000921,60072.0,60071.0,0.8418448]
[1726658483104,0.000921,60072.0,60071.0,0.72885174]
[1726658483574,0.000921,60072.0,60071.0,0.74285174]
[1726658484098,0.000921,60072.0,60071.0,0.84184375]
[1726658484816,0.000921,60072.0,60071.0,0.84384375]
[1726658485075,0.000921,60072.0,60071.0,0.86859048]
[1726658486815,0.000921,60072.0,60071.0,0.74485174]
[1726658487076,0.000921,60072.0,60071.0,0.74489114]
[1726658487331,0.000921,60072.0,60071.0,0.86864754]
[1726658488042,0.000921,60072.0,60071.0,0.81572074]
[1726658488926,0.000921,60072.0,60071.0,0.69196434]
[1726658489144,0.000921,60072.0,60071.0,0.81572074]
[1726658490276,0.000921,60072.0,60071.0,0.69196434]
[1726658490516,0.000921,60072.0,60071.0,0.67596434]
[1726658490735,0.000921,60072.0,60071.0,0.65996434]
[1726658491194,0.000921,60072.0,60071.0,0.7589902]
[1726658491655,0.000921,60072.0,60071.0,0.7449902]
[1726658491874,0.000921,60072.0,60071.0,0.7589902]
[1726658492317,0.000921,60072.0,60071.0,0.64596434]
[1726658492529,0.000921,60072.0,60071.0,0.7449902]
[1726658493062,0.000921,60072.0,60071.0,0.82272074]
[1726658493282,0.000921,60072.0,60071.0,0.69896434]
[1726658493522,0.000921,60072.0,60071.0,0.57529624]
[1726658493773,0.000921,60072.0,60071.0,0.68996434]
[1726658494498,0.000921,60072.0,60071.0,0.79984988]
[1726658494973,0.000921,60072.0,60071.0,0.81384988]
[1726658495199,0.000921,60072.0,60071.0,0.79984988]
[1726658495444,0.000921,60072.0,60071.0,0.64596434]
[1726658495663,0.000921,60072.0,60071.0,0.65996434]
[1726658495872,0.000921,60072.0,60071.0,0.75908812]
[1726658496294,0.000921,60072.0,60071.0,0.65996434]
[1726658496520,0.000921,60072.0,60071.0,0.66052696]
[1726658496730,0.000921,60072.0,60071.0,0.75966201]
[1726658497175,0.000921,60072.0,60071.0,0.4071762]
[1726658497176,0.097021,60072.0,60071.0,0.4071762]
[1726658497441,0.097021,60072.0,60071.0,0.0001]
[1726658497663,0.11536593,60072.0,60071.0,0.0141]
[1726658497941,0.11536593,60072.0,60071.0,0.0001]
[1726658498168,0.11536593,60072.0,60071.0,0.0091]
[1726658498644,0.11536593,60072.0,60071.0,0.0001]
[1726658498859,0.11536593,60072.0,60071.0,0.0021]
[1726658499354,0.14147873,60072.0,60071.0,0.0021]
[1726658500005,0.14147873,60072.0,60071.0,0.002]
[1726658500233,0.14147873,60072.0,60063.0,0.001742]
[1726658500234,0.0976,60070.0,60063.0,0.001742]
[1726658500500,0.0976,60068.0,60063.0,0.001742]
[1726658500940,0.01027991,60067.0,60063.0,0.001742]
[1726658501171,0.0961,60066.0,60063.0,0.001642]
[1726658501393,0.0752,60065.0,60063.0,0.001642]
[1726658501620,0.0961,60064.0,60063.0,0.001642]
[1726658501849,0.25915367,60064.0,60059.0,0.001642]
[1726658502090,0.0957,60062.0,60059.0,0.001642]
[1726658502331,0.0957,60060.0,60059.0,0.001642]
[1726658502558,0.25875367,60060.0,60059.0,0.001642]
[1726658502786,0.096,60058.0,60048.0,0.0001]
[1726658503111,0.096,60056.0,60047.0,0.0001]
[1726658503304,0.24055367,60057.0,60047.0,0.0001]
[1726658503305,0.16305367,60055.0,60047.0,0.0001]
[1726658503541,0.096,60054.0,60047.0,0.0001]
[1726658503774,0.25905367,60054.0,60047.0,0.0001]
[1726658504943,0.0076213,60053.0,60047.0,0.0001]
[1726658505158,0.0076213,60053.0,60050.0,0.0001]
[1726658507665,0.0106213,60053.0,60050.0,0.0001]
[1726658508151,0.0076213,60053.0,60052.0,0.0001]
[1726658508403,0.0086213,60053.0,60052.0,0.0001]
[1726658509100,0.0076213,60053.0,60052.0,0.0001]
[1726658509969,0.0086213,60053.0,60052.0,0.0001]
[1726658511720,0.0076213,60053.0,60052.0,0.0001]
[1726658511955,0.03374394,60053.0,60052.0,0.0001]
[1726658512194,0.03474394,60053.0,60051.0,0.0001]
[1726658512627,0.03474394,60053.0,60048.0,0.0001]
[1726658512628,0.0921,60052.0,60048.0,0.0001]
[1726658513082,0.0178667,60051.0,60048.0,0.0001]
[1726658516270,0.0178667,60051.0,60048.0,0.0011]